Cogmind - Beta 14 *** ADVENTURER MODE // 2024.08.29 @ 17:59:47 Player: LegoMDS Result: Destroyed by G-50 Soldier with Heavy Laser Performance ------------- Evolutions (3) 1500 Regions Visited (6) 1200 Robots Destroyed (82) 410 Value Destroyed (2505) 2505 Prototype IDs (6) 120 Alien Tech Used (0) 0 Bonus (598) 598 TOTAL SCORE: 6333 Bonus ------- High Alert Combat Kills 226 Follower Combat Kills 372 Cogmind --------- Core Integrity 0/700 Matter 295/300 Energy 160/160 System Corruption 1% Temperature Cool (26) Movement Flying (29) Location -7/Storage Parts ------- > --- POWER (2) -------- Light Nuclear Core > --- PROPULSION (4) --- Improved Cesium-ion Thruster Improved Cesium-ion Thruster Improved Cesium-ion Thruster > --- UTILITY (5) ------ Structural Scanner Advanced Targeting Computer Graphene Brace Hacking Suite > --- WEAPON (2) ------- Spear > --- INVENTORY (5) ---- Advanced Weight Redist. System Graphene Brace Hacking Suite Hacking Suite Plasma Cutter Peak State ------------ > --- POWER ------------ Light Deuterium Engine Light Nuclear Core > --- PROPULSION ------- VTOL Module Improved Cesium-ion Thruster Improved Cesium-ion Thruster Improved Cesium-ion Thruster > --- UTILITY ---------- Improved Heat Sink Advanced Weight Redist. System Advanced Targeting Computer Graphene Brace Hacking Suite > --- WEAPON ----------- Gauss Rifle Spear > --- INVENTORY -------- Structural Scanner Graphene Brace Hacking Suite Hacking Suite Plasma Cutter [Rating: 51] Favorites ----------- Power Light Nuclear Core Engine Light Ion Engine Power Core Light Nuclear Core Propulsion Improved Flight Unit Leg Aluminum Leg Flight Unit Improved Flight Unit Utility Hacking Suite Device Graphene Brace Storage Small Storage Unit Processor Advanced Targeting Computer Hackware Hacking Suite Protection Improved Weapon Shielding Weapon Scythe Energy Gun Cooled Pulse Rifle Ballistic Gun Light Assault Rifle Ballistic Cannon Battle Cannon Launcher Rocket Launcher Special Weapon Plasma Cutter Slashing Weapon Scythe Piercing Weapon Spear Build | -11 -10 -10 -9 -8 -7 -7 ------- Run | Yrd Mat Min Mat Mat Fac Sto Slots Evolved 6 | . . . 2 2 2 . Power 1 | . . . . . 1 . Propulsion 2 | . . . 1 . 1 . Utility 3 | . . . 1 2 . . Weapon . | . . . . . . . Parts Attached 93 | 6 4 . 12 12 41 18 Power 19 | 1 . . 1 3 8 6 Engine 9 | 1 . . 1 2 2 3 Core 10 | . . . . 1 6 3 Reactor . | . . . . . . . Propulsion 29 | 2 2 . 3 1 14 7 Treads . | . . . . . . . Leg 2 | 2 . . . . . . Wheel . | . . . . . . . Hover . | . . . . . . . Flight 27 | . 2 . 3 1 14 7 Utility 21 | 1 2 . 1 6 8 3 Device 16 | . 2 . . 3 8 3 Storage 1 | 1 . . . . . . Processor 2 | . . . 1 1 . . Hackware 1 | . . . . 1 . . Protection 1 | . . . . 1 . . Artifact . | . . . . . . . Weapon 24 | 2 . . 7 2 11 2 Energy Gun 3 | . . . 1 . 2 . Energy Cannon . | . . . . . . . Ballistic Gun 14 | 2 . . 4 . 6 2 Ballistic Cannon 1 | . . . . 1 . . Launcher 2 | . . . . 1 1 . Special Weapon 2 | . . . 2 . . . Impact Weapon . | . . . . . . . Slashing Weapon 1 | . . . . . 1 . Piercing Weapon 1 | . . . . . 1 . Special Melee Weapon . | . . . . . . . Unidentified Prototypes 4 | . . . 1 . 3 . Parts Lost 29 | . . . . 1 14 14 Power 8 | . . . . . 4 4 Propulsion 12 | . . . . . 6 6 Utility 3 | . . . . . 1 2 Weapon 6 | . . . . 1 3 2 Highest Loss Streak 7 | . . . . 1 5 7 To Critical Strikes . | . . . . . . . Average Slot Usage (%) 92 | . 99 100 94 100 90 89 Engine 4 | . 14 14 11 6 1 3 Core 6 | . . . . 2 9 9 Leg 2 | . 26 . . . . . Flight 24 | . 1 28 28 27 26 24 Device 17 | . 13 14 11 18 17 22 Storage 5 | . 14 14 11 9 3 . Processor 6 | . . . 10 9 7 7 Hackware 5 | . . . . 9 7 7 Energy Gun 1 | . . . . . 2 1 Ballistic Gun 10 | . 28 28 20 9 5 4 Slashing Weapon 2 | . . . . . 4 . Piercing Weapon 1 | . . . . . . 7 Peak Build Rating 51 | 6 9 9 21 30 48 51 Average Rating 32 | 4 7 8 17 26 41 40 On Entrance 16 | . 6 8 9 20 30 44 Naked Turns . | . . . . . . . Heaviest Build 26 | 12 13 12 14 17 26 19 Greatest Support 31 | 20 20 14 21 21 28 31 Greatest Overweight (x) 3 | . . . . . 3 1 Average Overweight (x) . | . . . . . . . Largest Inventory Capacity 8 | 8 8 8 8 8 8 5 Average Capacity 6 | 6 8 8 8 8 6 5 Most Carried 8 | 4 8 8 8 8 8 5 Average Carried 6 | 1 4 7 7 6 6 5 Final Capacity 8 | 8 8 8 8 8 5 5 Final Carried 8 | 1 6 8 8 8 5 5 Class Distribution -------------------- 40% | Hacker-Sprinter 28% | Hacker-Mutant 23% | Mutant 6% | Scavenger-Sprinter Dominant Class ---------------- Mutant | -10/Materials Mutant | -10/Mines Mutant | -9/Materials Hacker-Mutant | -8/Materials Hacker-Sprinter | -7/Factory Scavenger-Sprinter | -7/Storage Resources | -11 -10 -10 -9 -8 -7 -7 ----------- Run | Yrd Mat Min Mat Mat Fac Sto Matter Collected 1993 | 237 113 . 393 351 657 242 Remotely . | . . . . . . . Salvage Created 3282 | . 207 . 789 663 868 755 Parts 194 | . 11 . 54 31 45 53 Haulers Intercepted 7 | . 1 . 5 1 . . Recyclers Shooed 1 | . . . . 1 . . Parts Field Recycled . | . . . . . . . Retrieved Matter . | . . . . . . . Parts Self-Destructed . | . . . . . . . Prevented . | . . . . . . . Kills | -11 -10 -10 -9 -8 -7 -7 ------- Run | Yrd Mat Min Mat Mat Fac Sto Combat Hostiles Destroyed 56 | . 5 . 12 10 18 11 Melee 13 | . . . . . 5 8 Guns 38 | . 5 . 12 5 13 3 Cannons 2 | . . . . 2 . . AOE 3 | . . . . 3 . . Classes Destroyed 12 | . 3 . 4 1 2 2 Worker 2 | . . . . . . 2 Builder 3 | . . . 2 . 1 . Hauler 7 | . 1 . 5 1 . . Recycler 4 | . . . . 2 . 2 Operator 5 | . . . 1 1 2 1 Watcher 6 | . . . 2 1 2 1 Swarmer 13 | . 3 . 4 . 3 3 Grunt 22 | . 2 . 4 5 9 2 Sentry 18 | . . . 4 5 4 5 Hunter 1 | . . . . . . 1 Programmer 1 | . . . . . 1 . Assembled 1 | . . . . . 1 . Best Kill Streak 17 | . 3 . 17 4 4 7 Combat Bots Only 9 | . 3 . 9 3 4 4 Max Kills in Single Turn 2 | . 1 . 2 2 2 2 Gunslinging 1 | . . . 1 . . . Exploded 2 | . . . . 2 . . Melee 1 | . . . . . 1 1 Uniques/NPCs Destroyed . | . . . . . . . Combat | -11 -10 -10 -9 -8 -7 -7 -------- Run | Yrd Mat Min Mat Mat Fac Sto Hostile Shots Fired 717 | . 35 . 55 66 309 252 Missed 293 | . 12 . 26 30 129 96 Damage Taken 3647 | . 175 . 255 422 1705 1090 Core 877 | . 39 . 52 84 394 308 Absorbed by Shields . | . . . . . . . Ignored by Resistances 1134 | . 54 . 76 120 533 351 Regen/Repaired (Parts) 116 | . . . . . 116 . Core Remaining (%) 88 | 100 . 84 87 84 . . Volleys Fired 225 | . 25 . 52 52 66 30 Largest 2 | . 2 . 2 2 2 1 Hottest 62 | . 40 . 46 62 56 60 Shots Fired 337 | . 50 . 104 66 87 30 Gun 323 | . 50 . 104 52 87 30 Cannon 12 | . . . . 12 . . Launcher 2 | . . . . 2 . . Special . | . . . . . . . Kinetic 312 | . 50 . 104 64 70 24 Thermal 23 | . . . . . 17 6 Explosive 2 | . . . . 2 . . Electromagnetic . | . . . . . . . Robot Hit Streak 36 | . 13 . 21 36 19 14 Robot Miss Streak 3 | . 3 . 2 1 2 3 Penetration Max 1 | . . . . . . 1 Secondary Targets 4 | . 1 . 2 . 1 . Max Gunslinging Chain 1 | . 1 . 1 . 1 . Shots Hit Robots 325 | . 31 . 87 61 95 51 Core Hits 155 | . 14 . 31 27 54 29 Critical Kills 1 | . . . 1 . . . Critical Parts Destroyed 1 | . 1 . . . . . Critical Strikes 10 | . 1 . 1 . 4 4 Burn 1 | . . . . . 1 . Destroy 2 | . 1 . 1 . . . Sever 3 | . . . . . 3 . Impale 4 | . . . . . . 4 Melee Attacks 50 | . . . . . 19 31 Impact . | . . . . . . . Slashing 14 | . . . . . 14 . Piercing 36 | . . . . . 5 31 Sneak Attacks 2 | . . . . . . 2 Combat Hostiles . | . . . . . . . Follow-up Attacks . | . . . . . . . Damage Inflicted 6390 | . 252 . 1249 1245 2301 1343 Guns 4439 | . 252 . 1249 754 1700 484 Cannons 212 | . . . . 212 . . Explosions 279 | . . . . 279 . . Melee 1460 | . . . . . 601 859 Ramming . | . . . . . . . Kinetic 4361 | . 252 . 1249 966 1447 447 Thermal 290 | . . . . . 253 37 Explosive 279 | . . . . 279 . . Electromagnetic . | . . . . . . . Impact . | . . . . . . . Slashing 428 | . . . . . 428 . Piercing 1032 | . . . . . 173 859 Highest Corruption 1 | . . . . . 1 1 Average Corruption 1 | . . . . . 1 1 Corruption Purged . | . . . . . . . Corruption Blocked . | . . . . . . . Effects 9 | . . . . . 8 1 Message Errors 4 | . . . . . 3 1 Heat Flow Errors 2 | . . . . . 2 . Energy Discharges 1 | . . . . . 1 . Data Loss (minor) 1 | . . . . . 1 . Misfires 1 | . . . . . 1 . Overload Shots 1 | . . . . . . 1 Overflow Damage 75 | . . . . 7 14 54 Projectiles 7 | . . . . 7 . . Explosions . | . . . . . . . Melee 68 | . . . . . 14 54 Knockbacks 3 | . . . . 3 . . Impact . | . . . . . . . Kinetic 3 | . . . . 3 . . Secondary . | . . . . . . . Self-Inflicted Damage . | . . . . . . . Shots . | . . . . . . . Rammed . | . . . . . . . Targets Rammed . | . . . . . . . Kicked . | . . . . . . . Crushed . | . . . . . . . Highest Temperature 229 | . . . 8 12 229 5 Average Temperature 40 | . . . 2 6 56 3 Received Heat Transfer 1431 | . 57 . 39 288 684 363 Siege Activations . | . . . . . . . Robots Corrupted . | . . . . . . . Combat Hostiles . | . . . . . . . Parts Fried . | . . . . . . . Impact Corruptions . | . . . . . . . Robots Melted . | . . . . . . . Combat Hostiles . | . . . . . . . Parts Melted 1 | . . . . . 1 . Heat Transferred 629 | . . . . . 555 74 Parts Sabotaged . | . . . . . . . Parts Stolen . | . . . . . . . Parts Stripped . | . . . . . . . Power Chain Reactions . | . . . . . . . Alert | -11 -10 -10 -9 -8 -7 -7 ------- Run | Yrd Mat Min Mat Mat Fac Sto Peak Influence 649 | . 149 48 516 575 585 649 Initial 224 | . . 48 15 185 224 197 Average 316 | . 44 48 235 414 359 424 Maximum Alert Level 2 | . . . 2 2 2 2 Low Security (%) 19 | 100 100 100 51 5 . . Level 1 51 | . . . 19 39 72 50 Level 2 28 | . . . 29 54 27 49 Level 3 . | . . . . . . . Level 4 . | . . . . . . . Level 5 . | . . . . . . . High Security . | . . . . . . . Max Security . | . . . . . . . Squads Dispatched 13 | . . . 1 1 10 1 Investigation 4 | . . . . . 4 . Extermination 1 | . . . . . 1 . Reinforcement 7 | . . . 1 1 4 1 Assault 1 | . . . . . 1 . Garrison . | . . . . . . . Intercept . | . . . . . . . Searches Triggered . | . . . . . . . Construction Impeded . | . . . . . . . Haulers Reinforced 1 | . . . . . 1 . Active Scanning Responses . | . . . . . . . Cargo Convoy Interrupts 1 | . . . . . 1 . Stealth | -11 -10 -10 -9 -8 -7 -7 --------- Run | Yrd Mat Min Mat Mat Fac Sto Distress Signals 5 | . 1 . 1 . 1 2 Communications Jammed . | . . . . . . . Distress Signals . | . . . . . . . Times Spotted 102 | . 8 . 16 13 41 24 Peak Tracking Total 8 | . 4 . 4 6 7 8 Tactical Retreats 3 | . . . . 1 1 1 Traps | -11 -10 -10 -9 -8 -7 -7 ------- Run | Yrd Mat Min Mat Mat Fac Sto Traps Triggered 2 | . 1 . . . 1 . Indirectly . | . . . . . . . Trap Hack Attempts . | . . . . . . . Triggered . | . . . . . . . Disarmed . | . . . . . . . Reprogrammed . | . . . . . . . Reused . | . . . . . . . Traps Extracted . | . . . . . . . Installed . | . . . . . . . Triggered 1 | . . . . . 1 . Machines | -11 -10 -10 -9 -8 -7 -7 ---------- Run | Yrd Mat Min Mat Mat Fac Sto Machines Disabled 2 | . . . . . 1 1 Max in Single Turn 1 | . . . . . 1 1 Garrison Access 2 | . . . . 1 1 . Machines Repaired . | . . . . . . . Machines Dismantled . | . . . . . . . Machines Sabotaged . | . . . . . . . Overloaded Fab Kills . | . . . . . . . Hacking | -11 -10 -10 -9 -8 -7 -7 --------- Run | Yrd Mat Min Mat Mat Fac Sto Machines Accessed 16 | . 3 . . 2 9 2 Terminals 8 | . 3 . . 1 2 2 Fabricators 3 | . . . . . 3 . Repair Stations 2 | . . . . . 2 . Recycling Units . | . . . . . . . Scanalyzers 2 | . . . . . 2 . Garrison Access 1 | . . . . 1 . . Total Hacks 40 | . 6 . . 2 29 3 Successful 27 | . 3 . . 2 21 1 Failed 13 | . 3 . . . 8 2 Catastrophic . | . . . . . . . Database Lockouts . | . . . . . . . Manual 4 | . 3 . . . . 1 Terminals 15 | . 6 . . 1 5 3 Fabricators 8 | . . . . . 8 . Repair Stations 6 | . . . . . 6 . Recycling Units . | . . . . . . . Scanalyzers 10 | . . . . . 10 . Garrison Access 1 | . . . . 1 . . Terminal Hacks 8 | . 3 . . 1 3 1 Part Schematic 1 | . 1 . . . . . Robot Analysis 2 | . 1 . . . 1 . Prototype ID Bank 1 | . 1 . . . . . Open Door 1 | . . . . . . 1 Locate Traps 1 | . . . . . 1 . Recall Investigation 1 | . . . . . 1 . Zone Layout 1 | . . . . 1 . . Fabricator Hacks 6 | . . . . . 6 . Load Schematic 2 | . . . . . 2 . Build 4 | . . . . . 4 . Repair Station Hacks 6 | . . . . . 6 . Scan Component 3 | . . . . . 3 . Repair 3 | . . . . . 3 . Recycling Unit Hacks . | . . . . . . . Scanalyzer 6 | . . . . . 6 . Insert Component 3 | . . . . . 3 . Analyze 3 | . . . . . 3 . Garrison Access Hacks 1 | . . . . 1 . . Seal Access 1 | . . . . 1 . . Unauthorized Hacks . | . . . . . . . Terminals . | . . . . . . . Fabricators . | . . . . . . . Repair Stations . | . . . . . . . Recycling Units . | . . . . . . . Scanalyzers . | . . . . . . . Garrison Access . | . . . . . . . Data Cores Recovered 1 | . . . 1 . . . Used . | . . . . . . . Hacking Detections 11 | . 3 . . . 7 1 Full Trace Events 4 | . . . . . 4 . Feedback Events . | . . . . . . . Feedback Blocked . | . . . . . . . Robot Schematics Acquired . | . . . . . . . Robots Built 2 | . . . . . 2 . Authchips . | . . . . . . . Time 134 | . . . . . 134 . Total Robot Build Rating 8 | . . . . . 8 . Part Schematics Acquired 4 | . 1 . . . 3 . Parts Built 6 | . . . . . 6 . Authchips . | . . . . . . . Time 184 | . . . . . 184 . Total Part Build Rating 30 | . . . . . 30 . Parts Repaired 3 | . . . . . 3 . Time 92 | . . . . . 92 . Parts Recycled . | . . . . . . . Recycled Matter . | . . . . . . . Retrieved Matter . | . . . . . . . Retrieved Components . | . . . . . . . Parts Scanalyzed 3 | . . . . . 3 . Part Schematics Acquired 3 | . . . . . 3 . Parts Damaged . | . . . . . . . Bothacking | -11 -10 -10 -9 -8 -7 -7 ------------ Run | Yrd Mat Min Mat Mat Fac Sto Used RIF Installer . | . . . . . . . Robots Hacked . | . . . . . . . Non-combat . | . . . . . . . Combat . | . . . . . . . Robot Hacks Applied . | . . . . . . . Relay Couplers Released 1 | . . . . . 1 . Machine Destruction 1 | . . . . . 1 . Fabnet Peak Effective % . | . . . . . . . Robots Rewired . | . . . . . . . Allies Hacked . | . . . . . . . Hacks Repelled . | . . . . . . . Allies | -11 -10 -10 -9 -8 -7 -7 -------- Run | Yrd Mat Min Mat Mat Fac Sto Total Allies 2 | . . . . . 2 . Largest Group 2 | . . . . . 2 . Highest-Rated Group 64 | . . . . . 64 . Highest-Rated Ally 32 | . . . . . 32 . Total Orders . | . . . . . . . Ally Attacks 31 | . . . . . 31 . Total Damage 1219 | . . . . . 1219 . Kills 16 | . . . . . 16 . Allies Corrupted . | . . . . . . . Allies Melted . | . . . . . . . Intel | -11 -10 -10 -9 -8 -7 -7 ------- Run | Yrd Mat Min Mat Mat Fac Sto Robot Analysis Total 2 | . 1 . . . 1 . Derelict Logs Recovered . | . . . . . . . Drone Launches . | . . . . . . . Drone Recoveries . | . . . . . . . Exploration | -11 -10 -10 -9 -8 -7 -7 ------------- Run | Yrd Mat Min Mat Mat Fac Sto Turns Passed 2746 | 50 233 64 313 257 1543 286 Spaces Moved 3194 | 41 146 168 374 314 1848 303 Core 35 | 16 . . . . 19 . Treads . | . . . . . . . Legs 139 | 25 114 . . . . . Wheels . | . . . . . . . Hover . | . . . . . . . Flight 3020 | . 32 168 374 314 1829 303 Fastest Speed 26 | 50 37 37 34 34 29 26 Average Speed 40 | 92 101 37 35 34 37 35 Slowest Speed 200 | 120 120 37 37 34 200 120 Overloaded Moves . | . . . . . . . Propulsion Burnouts . | . . . . . . . Robots Hopped 13 | . . . 5 2 6 . Cave-ins Triggered . | . . . . . . . Exploration Rate (%) 36 | 4 34 46 47 37 46 38 Regions Visited 6 Branch Regions 2 Pre-discovered Areas . | . . . . . . . Known Exits Taken . | . . . . . . . Unknown Exits Taken 6 | 1 1 1 1 1 1 . Scrap Searched 1 | . . 1 . . . . Spaces Dug . | . . . . . . . Terrain Destroyed 26 | . . . . 26 . . Melee . | . . . . . . . Projectile 1 | . . . . 1 . . AOE 25 | . . . . 25 . . Terrain Rammed . | . . . . . . . Walls Destroyed . | . . . . . . . Machines Disabled . | . . . . . . . Actions | -11 -10 -10 -9 -8 -7 -7 --------- Run | Yrd Mat Min Mat Mat Fac Sto Total 4229 | 53 189 169 452 392 2574 400 Wait 584 | . 5 . . . 567 12 Move 3163 | 40 145 167 364 309 1835 303 Hop 12 | . . . 4 2 6 . Pick Up 50 | 7 8 2 7 10 16 . Fast Attach 36 | . . . 4 . 21 11 Attach 22 | 6 1 . 1 4 10 . Detach 2 | . . . . . 2 . Swap 35 | . 3 . 7 8 10 7 Drop 49 | . 2 . 13 6 22 6 Fire 225 | . 25 . 52 52 66 30 Melee 50 | . . . . . 19 31 Ram . | . . . . . . . Kick . | . . . . . . . Crush . | . . . . . . . Escape Stasis . | . . . . . . . Rewire . | . . . . . . . Trap . | . . . . . . . Miscellaneous 1 | . . . . 1 . . Route ------- -11/Scrapyard -10/Materials -10/Mines -9/Materials -8/Materials -7/Factory -7/Storage History --------- Turn | Location | Event 5 | -11/Scrapyard | Discovered new exit (range 15) 51 | -11/Scrapyard | Entered Materials 228 | -10/Materials | Discovered new exit (range 15) 284 | -10/Materials | Entered Mines 295 | -10/Mines | Received a Rocket Launcher from a helpful Derelict 312 | -10/Mines | Build established: Mutant 336 | -10/Mines | A weapon hastily lodged in a ceiling crevice suddenly fell to the ground 346 | -10/Mines | Discovered new exit (range 5) 348 | -10/Mines | Entered Materials 348 | -9/Materials | Evolved 2 slots: Propulsion x1, Utility x1 598 | -9/Materials | Destroyed 9 combat bots 632 | -9/Materials | Discovered new exit (range 3) 661 | -9/Materials | Entered another Materials area 661 | -8/Materials | Evolved 2 slots: Utility x2 888 | -8/Materials | Discovered new exit (range 8) 918 | -8/Materials | Entered Factory 918 | -7/Factory | Evolved 2 slots: Power x1, Propulsion x1 990 | -7/Factory | Fabricated Graphene Brace (x2) 1045 | -7/Factory | Discovered new exit (range 8) 1207 | -7/Factory | Lost 3 parts (2p1w) 1439 | -7/Factory | Lost 3 parts (1n1u1w) 1499 | -7/Factory | Fabricated Y-54 Guardian (x2) 1623 | -7/Factory | Fabricated Xenon Bombardment Thruster (x2) 1952 | -7/Factory | Build established: Hacker-Sprinter 2004 | -7/Factory | Repaired Cooling System 2092 | -7/Factory | Core integrity fell below 50% 2124 | -7/Factory | Lost 5 parts (2p3n) 2172 | -7/Factory | Cargo convoy interrupted 2204 | -7/Factory | Fabricated Xenon Bombardment Thruster (x2) 2390 | -7/Factory | Repaired Xenon Bombardment Thruster 2423 | -7/Factory | Repaired Cooling System 2461 | -7/Factory | Entered Storage 2560 | -7/Storage | Lost 7 parts (3p3n1w) 2620 | -7/Storage | Core integrity fell below 20% 2747 | -7/Storage | Destroyed by G-50 Soldier with Heavy Laser Last Messages --------------- R-06 Scavenger collects Imp. Heat Sink. R-06 Scavenger collects Imp. Deuterium Engine. R-06 Scavenger collects Gatling Laser. Y-54 Guardian destroyed. R-06 Scavenger collects Imp. Light Armor Plating. Acquired 62 matter. Lgt. Deuterium Engine destroyed. Slug penetrates G-47 Trooper. VTOL Module destroyed. Gauss Rifle destroyed. G-47 Trooper destroyed. Imp. Heat Sink destroyed. Acquired 12 matter. Acquired VTOL Module. Acquired 10 matter. |AXONBBB>86JIVJJVJ4A,8# RZQZF#D|M Acquired Imp. Deuterium Engine. VTOL Module destroyed. Dropped Imp. Deuterium Engine. Map ----- +----------------------------------------------------+ | | | | | | | | | | | ?????????????????????????????????????????????????? | | ?????????????????????????????????????????????????? | | ?????????????????????????????????????????????????? | | ?????????????????????????????????????????????????? | | ?????????????????????????????????????????????????? | | ?????????????????????? ??????????????????????????? | | ????????????????????? ##???????????????????????? | | ??????????????????????g### ??????????????????????? | | ?????????????????????? # ??????????????????????? | | ?????????????????????? g + ??????????????????????? | | ????????????????????? # ??????????????????????? | | ?????????????????????## # ??????????????????????? | | ?????????????????????## # ??????????????????????? | | ??????????????????##### # ??????????????????????? | | ??????????????????##### # ??????????????????????? | | ??????????????????##""" ##????????? ##??????????? | | ??????????????????##"R ######### ? ##??????????? | | ?????????????????????"" ######### ##??????????? | | ?????????????????????## ##??????????? | | ????????####?????????## ????????? | | ????????############### @ ????????? | | ????????# ######a##### ##??????????? | | ???????## """ ## # ???? ###??????????? | | ???????## """ ##" # ???? ###??????????? | | ???????## """ ##T **##???# #????????????? | | ???????## ##" ##???# #????????????? | | ???????## # ##??## ##???????????? | | ???????## " " ## ##??# #???????????? | | ???###### "Y" ## + ?? #???????????? | | ??####### """ ## ###?? ????????????? | | ??### #+###+#########+#######?? ????????????? | | ??##T = +%[ ##??# #????????????? | | ??### ##= ##??# #??????####### | | ??###= ## = ##??# #??????####### | | ???##= ####+#/############ ##?## #########""""" | | ???##==## [% ######## ##### #########""T"" | | ???###### ##?????# % ! !%= ! | | ???###### ##?????# = *! % | | ???????## """" ##?????# % | | ??????### """" ##?????#####+##### ########### | | ??????### """" ##?????# ![= # # # * | | ??????## """" ##?????# ! "T" #!! #????? # "" | | ??????### ##?????# =[* #%[ #????? # "% | | ??????##############?????# #*= #????? # "[ | | ???????#############?????# #! /????? # "" | +----------------------------------------------------+ Best States ------------- Heat Dissipation 56 Energy Generation 25 Energy Capacity 350 Matter Stores 300 Matter Capacity 300 Sight Range 16 Terrain Scan Density 10 Additional Mass Support 9 Resistance: KI 20 Resistance: TH 20 Resistance: EX 20 Resistance: EM 20 Resistance: I 20 Resistance: S 20 Resistance: P 20 Evasion (%) 64 Targeting Accuracy 8 Offensive Hacking 20 Item Schematics ----------------- Flight Unit | -10/Materials | Hacked Xenon Bombardment Thruster | -7/Factory | Scanalyzed Mic. Nuclear Core | -7/Factory | Scanalyzed Adv. Weight Redist. System | -7/Factory | Scanalyzed Robot Schematics ------------------ None Fabricated ------------ Graphene Brace | x2 | -7/Factory | Preloaded Y-54 Guardian | x2 | -7/Factory | Preloaded Xenon Bombardment Thruster | x2 | -7/Factory Xenon Bombardment Thruster | x2 | -7/Factory Alien Tech Used ----------------- None Achievements -------------- None Challenges ------------ None Game ------ Seed ProjectionHelicalPick Manual? 0 Play Time 00:44:37 Cumulative 42.0 hours Start 2024.08.29 @ 17:15:22 End 2024.08.29 @ 17:59:47 Sessions 1 Manual Loads 0 Difficulty Adventurer Special Mode None Game No. 54 Rogue 13 Adventurer 41 Explorer 0 Win Type - Total 0 Types 0/0/0/0/0/0/0/0/0 Lore% 38 Gallery% 43 Achievement% 35 Wizard Run 0 Options --------- Layout 1 ASCII 0 Keyboard 0 Movement Mouse Keybinds 0 Fullscreen 1 Font 24/Smallcaps Map View 50x35 Zoom Use 0% Tactical HUD 0 Map Filters NONE Filters NONE Steam 1 RUN: c3033404-2c69-4c69-b5ac-9adf8eae3676